bitfinex/quotes_BTCUSD_20251201
["timestamp","ask_amount","ask_price","bid_price","bid_amount"]
[1764606579119,0.02547823,84729.0,84716.0,0.34140601]
[1764606579325,0.02547823,84729.0,84716.0,0.09352]
[1764606579532,0.02547823,84729.0,84717.0,0.09252]
[1764606580070,0.323,84730.0,84717.0,0.09252]
[1764606580227,0.02547823,84729.0,84717.0,0.104324]
[1764606580605,0.02547823,84729.0,84717.0,0.09252]
[1764606581505,0.03184778,84731.0,84714.0,0.00011676]
[1764606581712,0.323,84728.0,84714.0,0.00011676]
[1764606581922,0.02547823,84727.0,84717.0,0.001]
[1764606582483,0.02547823,84727.0,84714.0,0.00011676]
[1764606582800,0.02547823,84727.0,84714.0,0.00111676]
[1764606583208,0.05732601,84728.0,84714.0,0.00011676]
[1764606583415,0.02547823,84728.0,84721.0,0.01180344]
[1764606583622,0.02547823,84728.0,84727.0,0.10894]
[1764606583816,0.02547823,84728.0,84727.0,0.04868]
[1764606584221,0.03184778,84734.0,84727.0,0.04868]
[1764606584422,0.14707374,84734.0,84727.0,0.04868]
[1764606585891,0.03184778,84734.0,84727.0,0.04868]
[1764606586098,0.03184778,84733.0,84727.0,0.04868]
[1764606589368,0.0649,84728.0,84721.0,0.04868]
[1764606589588,0.0649,84728.0,84714.0,0.00011676]
[1764606589589,0.0649,84728.0,84715.0,0.04868]
[1764606589817,0.0649,84728.0,84716.0,0.01180414]
[1764606589938,0.0649,84728.0,84715.0,0.2965679]
[1764606590143,0.0649,84728.0,84715.0,0.04868]
[1764606590380,0.41337823,84728.0,84715.0,0.04868]
[1764606590582,0.38032601,84727.0,84715.0,0.04868]
[1764606590780,0.05732601,84726.0,84715.0,0.04868]
[1764606591176,0.03184778,84723.0,84715.0,0.04868]
[1764606591498,0.03184778,84723.0,84721.0,0.001]
[1764606591994,0.04246371,84727.0,84722.0,0.15278]
[1764606592197,0.03189781,84723.0,84722.0,0.15278]
[1764606592425,0.03189781,84725.0,84719.0,0.24787623]
[1764606592622,0.03189781,84725.0,84718.0,0.01180386]
[1764606592824,0.03189781,84725.0,84724.0,0.06026]
[1764606593119,0.03189781,84726.0,84724.0,0.06026]
[1764606593673,0.03189781,84726.0,84725.0,0.06026]
[1764606594301,0.03189781,84726.0,84715.0,0.04868]
[1764606594302,0.323,84725.0,84715.0,0.04868]
[1764606594476,0.05737604,84724.0,84715.0,0.04868]
[1764606594682,0.02547823,84724.0,84715.0,0.04868]
[1764606594887,0.02547823,84724.0,84716.0,0.01180414]
[1764606595060,0.02547823,84724.0,84715.0,0.15708428]
[1764606595270,0.02547823,84724.0,84715.0,0.3931682]
[1764606595860,0.02547823,84724.0,84715.0,0.14528]
[1764606596069,0.02547823,84724.0,84715.0,0.15708428]
[1764606596216,0.02547823,84724.0,84715.0,0.14528]
[1764606596636,0.04188179,84724.0,84715.0,0.04868]
[1764606596863,0.03189781,84724.0,84715.0,0.04868]
[1764606597286,0.03189781,84723.0,84715.0,0.04968]
[1764606597738,0.03189781,84723.0,84715.0,0.001]
[1764606598187,0.03189781,84723.0,84714.0,0.00011676]
[1764606598588,0.03189781,84723.0,84715.0,0.001]
[1764606598859,0.03389781,84723.0,84714.0,0.00011676]
[1764606599267,0.03389781,84723.0,84714.0,0.00111676]
[1764606599484,0.03189781,84723.0,84714.0,0.00111676]
[1764606599885,0.323,84721.0,84714.0,0.00111676]
[1764606600089,0.02547823,84720.0,84714.0,0.00111676]
[1764606600289,0.323,84719.0,84714.0,0.00111676]
[1764606600513,0.03189781,84715.0,84714.0,0.00111676]
[1764606600636,0.323,84717.0,84714.0,0.00011676]
[1764606600891,0.03190323,84715.0,84714.0,0.00011676]
[1764606601092,0.02547823,84720.0,84718.0,0.23607663]
[1764606601369,0.0254821,84738.0,84731.0,0.07489205]
[1764606601608,0.0254821,84738.0,84737.0,0.08182]
[1764606601858,0.04246371,84770.0,84744.0,0.2360049]
[1764606602052,0.07420557,84776.0,84744.0,0.41477953]
[1764606602053,0.04246371,84772.0,84744.0,0.41477953]
[1764606602224,0.33756143,84774.0,84744.0,0.51137953]
[1764606602369,0.08463573,84775.0,84751.0,0.01179927]
[1764606602565,0.01499833,84775.0,84754.0,0.01179885]
[1764606602843,0.01051,84776.0,84753.0,0.23597957]
[1764606602844,0.01179606,84774.0,84753.0,0.01179899]
[1764606602999,0.00038887,84774.0,84760.0,0.2359599]
[1764606603205,0.00038887,84774.0,84759.0,0.24776032]
[1764606603414,0.00038887,84774.0,84773.0,0.0836]
[1764606603804,0.00133917,84774.0,84773.0,0.1802]
[1764606604193,0.00133917,84774.0,84773.0,0.0816]
[1764606604391,0.00133917,84774.0,84773.0,0.01651]
[1764606604641,0.00133917,84774.0,84773.0,0.0816]
[1764606604842,0.00333917,84774.0,84773.0,0.0876]
[1764606605040,0.00333917,84774.0,84773.0,0.19296]
[1764606605620,0.00333917,84774.0,84773.0,0.0876]
[1764606606019,0.00333917,84774.0,84773.0,0.0886]
[1764606606219,0.00333917,84774.0,84773.0,0.1852]
[1764606606681,0.00333917,84774.0,84773.0,0.32302819]
[1764606607589,0.00133917,84774.0,84773.0,0.1782]
[1764606607726,0.00133917,84774.0,84773.0,0.01751]
[1764606608063,0.00333917,84774.0,84773.0,0.0976]
[1764606608269,0.00133917,84774.0,84773.0,0.0826]
[1764606608407,0.00333917,84774.0,84773.0,0.0966]
[1764606608622,0.23926056,84774.0,84773.0,0.0966]
[1764606608885,2.68553662,84774.0,84773.0,0.015]
[1764606609087,2.62853056,84774.0,84773.0,0.015]
[1764606609258,2.66161056,84774.0,84773.0,0.015]
[1764606609441,2.62853056,84774.0,84773.0,0.016]
[1764606609644,0.323,84773.0,84767.0,0.02575]
[1764606609870,0.323,84773.0,84755.0,0.0966]
[1764606609871,0.3347969,84768.0,84755.0,0.0966]
[1764606610106,0.323,84768.0,84750.0,0.0418]
[1764606610313,0.323,84759.0,84738.0,0.01180108]
[1764606610515,0.323,84759.0,84738.0,0.24782202]
[1764606610668,0.323,84759.0,84758.0,0.0418]
[1764606611428,2.0,84769.0,84758.0,0.0418]
[1764606611543,0.323,84766.0,84758.0,0.0418]
[1764606611745,0.323,84766.0,84751.0,0.0418]
[1764606611746,0.323,84763.0,84751.0,0.0418]
[1764606611948,0.0289,84759.0,84758.0,0.014]
[1764606612201,0.001,84759.0,84758.0,0.014]
[1764606613012,2.0,84770.0,84758.0,0.07909]
[1764606613238,2.0,84770.0,84758.0,0.06509]
[1764606613433,2.0,84770.0,84758.0,0.07688829]
[1764606613657,0.001,84766.0,84758.0,0.07609]
[1764606613896,0.0925,84776.0,84758.0,0.07688829]
[1764606614089,0.0925,84776.0,84758.0,0.06509]
[1764606614235,2.001,84770.0,84758.0,0.08688829]
[1764606614413,0.03547573,84780.0,84758.0,0.1416712]
[1764606614612,2.0,84773.0,84763.0,0.0117976]
[1764606614812,0.001,84766.0,84764.0,0.2359487]
[1764606615026,0.00075374,84768.0,84764.0,0.34434616]
[1764606615238,0.04957,84783.0,84765.0,0.06509]
[1764606615443,0.04957,84783.0,84764.0,0.01179746]
[1764606615654,0.0925,84773.0,84750.0,0.23598692]
[1764606615927,0.0925,84773.0,84752.0,0.01179913]
[1764606616147,0.1042962,84773.0,84749.0,0.10839954]
[1764606616383,2.0,84773.0,84757.0,0.05359843]
[1764606616587,0.00038887,84774.0,84772.0,0.02475]
[1764606617260,0.001,84773.0,84772.0,0.02475]
[1764606617484,0.00038887,84774.0,84772.0,0.02475]
[1764606617693,0.00138887,84774.0,84772.0,0.03675]
[1764606617896,0.00038887,84774.0,84772.0,0.02475]
[1764606618302,0.001,84773.0,84772.0,0.03675]
[1764606619219,0.001,84773.0,84772.0,0.19844]
[1764606619424,0.001,84773.0,84772.0,0.24305721]
[1764606619675,0.00038887,84774.0,84772.0,0.18644]
[1764606619875,0.00138887,84774.0,84772.0,0.012]
[1764606620029,0.00038887,84774.0,84766.0,0.02475]
[1764606620443,0.001,84773.0,84772.0,0.013]
[1764606620689,0.00038887,84774.0,84772.0,0.001]
[1764606620902,0.70036417,84773.0,84772.0,0.001]
[1764606621098,2.77660517,84773.0,84772.0,0.014]
[1764606621310,0.01179704,84767.0,84744.0,0.01180024]
[1764606621464,0.323,84763.0,84744.0,0.24780452]
[1764606621657,0.323,84764.0,84746.0,0.01179996]
[1764606621860,0.323,84762.0,84747.0,0.01179982]
[1764606622204,0.323,84762.0,84753.0,0.01179899]
[1764606622383,0.03547778,84773.0,84761.0,0.06509]
[1764606622577,0.02889,84779.0,84772.0,0.0498]
[1764606622987,0.03547044,84780.0,84772.0,0.0498]
[1764606623185,0.02533958,84787.0,84772.0,0.0418]
[1764606623385,0.03546809,84787.0,84772.0,0.0418]
[1764606623595,0.02533958,84787.0,84773.0,0.16169]
[1764606623808,0.28313406,84791.0,84773.0,0.16169]
[1764606624011,0.01179453,84785.0,84772.0,0.0418]
[1764606624209,0.5588864,84787.0,84772.0,0.0408]
[1764606624377,0.0117944,84786.0,84772.0,0.0408]
[1764606624577,0.323,84787.0,84772.0,0.0408]
[1764606624822,0.33479426,84787.0,84772.0,0.0408]
[1764606625223,0.02535318,84786.0,84773.0,0.15178]
[1764606625377,0.323,84788.0,84773.0,0.15178]
[1764606625586,0.02535318,84787.0,84773.0,0.15178]
[1764606625788,0.00138887,84774.0,84773.0,0.15978]
[1764606626051,0.00038887,84774.0,84773.0,0.06004]
[1764606626279,0.00038887,84774.0,84773.0,0.070124]
[1764606626460,0.00038887,84774.0,84773.0,0.06004]
[1764606626619,0.00138887,84774.0,84773.0,0.07004]
[1764606627163,0.00138887,84774.0,84773.0,0.01]
[1764606627367,0.02838887,84774.0,84773.0,0.01]
[1764606627559,0.02933917,84774.0,84773.0,0.01]
[1764606627745,0.32533917,84774.0,84773.0,0.01]
[1764606628310,0.73096273,84774.0,84773.0,0.01]
[1764606628511,0.84618869,84774.0,84773.0,0.01]
[1764606628756,2.73096273,84774.0,84773.0,0.01]
[1764606629310,0.323,84758.0,84757.0,0.0408]
[1764606629523,0.323,84758.0,84733.0,0.04675]
[1764606629524,0.55902161,84738.0,84733.0,0.04675]
[1764606629726,0.323,84729.0,84721.0,0.09197]
[1764606629934,0.323,84729.0,84719.0,0.02475]
[1764606629935,0.55907176,84720.0,84719.0,0.02475]
[1764606630143,0.323,84713.0,84705.0,0.0408]
[1764606630345,0.5590916,84713.0,84712.0,0.02475]
[1764606630787,0.5590916,84713.0,84712.0,0.00011676]
[1764606631102,0.323,84713.0,84712.0,0.15310676]
[1764606631276,2.0,84739.0,84712.0,0.17089244]
[1764606631481,2.0,84739.0,84727.0,0.06102]
[1764606631482,0.02541866,84738.0,84727.0,0.06102]
[1764606631679,0.0118008,84740.0,84727.0,0.06102]
[1764606631680,0.02541866,84740.0,84727.0,0.06102]
[1764606631983,0.323,84740.0,84738.0,0.04675]
[1764606632143,0.02541866,84739.0,84738.0,0.04575]
[1764606632541,0.02541866,84739.0,84738.0,0.10677]
[1764606632742,0.001,84740.0,84738.0,0.10677]
[1764606632939,0.23601669,84740.0,84738.0,0.04575]
[1764606633264,0.23601669,84740.0,84715.0,0.09197]
[1764606633265,0.2478565,84727.0,84715.0,0.09197]
[1764606633462,0.04771,84726.0,84719.0,0.04575]
[1764606633668,0.323,84723.0,84715.0,0.00011676]
[1764606634245,0.323,84723.0,84722.0,0.06102]
[1764606634641,9.171e-05,84723.0,84722.0,0.06102]
[1764606634845,0.01189488,84723.0,84708.0,0.02426676]
[1764606635114,0.0118033,84722.0,84709.0,0.02028949]
[1764606635472,0.0118033,84722.0,84715.0,0.001]
[1764606635679,0.00109171,84723.0,84715.0,0.001]
[1764606635882,9.171e-05,84723.0,84709.0,0.02028949]
[1764606636133,0.00109171,84723.0,84722.0,0.06102]
[1764606636543,0.011804,84717.0,84709.0,0.001]
[1764606636722,0.01180344,84721.0,84715.0,0.009]
[1764606636926,0.24787304,84721.0,84715.0,0.009]
[1764606637129,0.323,84719.0,84715.0,0.009]
[1764606637887,0.323,84719.0,84709.0,0.001]
[1764606638084,0.01180358,84720.0,84708.0,0.02426676]
[1764606638310,0.57196023,84723.0,84722.0,0.01]
[1764606638662,0.323,84719.0,84708.0,0.02426676]
[1764606638902,0.24788136,84718.0,84715.0,0.007]
[1764606639090,0.323,84717.0,84708.0,0.02426676]
[1764606639965,9.171e-05,84723.0,84716.0,0.06102]
[1764606641058,0.001,84718.0,84716.0,0.06102]
[1764606641254,9.171e-05,84723.0,84716.0,0.06102]
[1764606641455,9.171e-05,84723.0,84717.0,0.06102]
[1764606641729,0.00109171,84723.0,84717.0,0.06102]
[1764606641935,9.171e-05,84723.0,84708.0,0.02426676]
[1764606642136,0.001,84718.0,84716.0,0.009]
[1764606642563,0.001,84718.0,84680.0,0.0004]
[1764606642564,0.04805,84709.0,84696.0,0.0408]
[1764606643021,0.01180526,84708.0,84696.0,0.0408]
[1764606643321,0.323,84705.0,84696.0,0.0408]
[1764606643480,0.33480553,84706.0,84696.0,0.0408]
[1764606643685,0.01180526,84708.0,84696.0,0.0408]
[1764606643858,0.323,84706.0,84696.0,0.0408]
[1764606644687,0.323,84706.0,84705.0,0.02426]
[1764606644847,0.323,84706.0,84696.0,0.0408]
[1764606644848,0.001,84706.0,84700.0,0.0074]
[1764606645227,0.0195187,84706.0,84700.0,0.0074]
[1764606645372,0.23611357,84705.0,84700.0,0.0074]
[1764606645580,0.0195187,84706.0,84700.0,0.0074]
[1764606646379,0.0195187,84706.0,84705.0,0.02426]
[1764606646581,0.001,84706.0,84705.0,0.17725]
[1764606646820,0.001,84706.0,84705.0,0.195715]
[1764606647012,0.01600863,84719.0,84706.0,0.01180553]
[1764606647186,0.01600863,84719.0,84715.0,0.01180428]
[1764606647368,0.01600863,84719.0,84718.0,0.15199]
[1764606647576,0.01600863,84719.0,84718.0,0.38806733]
[1764606647777,0.0185155,84735.0,84722.0,0.23606619]
[1764606648025,0.01851695,84749.0,84722.0,0.38805619]
[1764606648236,0.06076937,84751.0,84722.0,0.38805619]
[1764606648444,1.15973068,84750.0,84722.0,0.38805619]
[1764606648662,0.01206121,84753.0,84722.0,0.56948737]
[1764606648663,0.01612954,84746.0,84722.0,0.56948737]
[1764606648850,0.00026222,84753.0,84752.0,0.23598263]
[1764606649035,0.00037896,84753.0,84752.0,0.06002]
[1764606649232,0.00037896,84753.0,84752.0,0.20944411]
[1764606650026,0.00037896,84753.0,84752.0,0.11747411]
[1764606650224,0.00037896,84753.0,84752.0,0.06102]
[1764606650856,0.00037896,84753.0,84752.0,0.15299]
[1764606651244,0.00037896,84753.0,84752.0,0.15899]
[1764606652992,0.00037896,84753.0,84752.0,0.18939099]
[1764606653195,0.00037896,84753.0,84752.0,0.25191398]
[1764606653578,0.01572927,84785.0,84772.0,0.01179634]
[1764606653845,0.00038906,84785.0,84773.0,0.23592313]
[1764606654024,0.00038906,84785.0,84784.0,0.0474]
[1764606654434,0.04798906,84785.0,84760.0,0.09814]
[1764606654591,0.323,84784.0,84766.0,0.23594234]
[1764606654791,0.323,84784.0,84772.0,0.006]
[1764606655190,0.00065536,84773.0,84767.0,0.09814]
[1764606655411,0.323,84784.0,84767.0,0.09814]
[1764606655615,0.323,84779.0,84762.0,0.05919773]
[1764606655791,0.323,84779.0,84763.0,0.01017144]
[1764606655999,0.04892,84778.0,84763.0,0.01017144]
[1764606656202,0.04892,84778.0,84762.0,0.0474]
[1764606656853,0.04892,84778.0,84772.0,0.004]
[1764606657229,0.323,84775.0,84762.0,0.0474]
[1764606657430,0.33479593,84775.0,84762.0,0.0524]
[1764606657632,0.323,84771.0,84762.0,0.005]
[1764606657836,0.323,84771.0,84751.0,0.04253927]
[1764606658037,0.323,84771.0,84751.0,0.03074]
[1764606658366,0.6732263,84770.0,84751.0,0.03074]
[1764606658570,0.323,84769.0,84751.0,0.03074]
[1764606658743,0.323,84769.0,84756.0,0.01179857]
[1764606659117,0.323,84769.0,84751.0,0.04253927]
[1764606659321,0.323,84769.0,84751.0,0.03074]
[1764606659322,0.323,84760.0,84751.0,0.03074]
[1764606659509,0.09021,84768.0,84751.0,0.03174]
[1764606659711,0.09021,84768.0,84762.0,0.006]
[1764606659916,0.33479676,84769.0,84767.0,0.0474]
[1764606659917,0.323,84769.0,84767.0,0.0474]
[1764606660056,0.323,84769.0,84756.0,0.001]
[1764606660431,0.34151043,84777.0,84765.0,0.0474]
[1764606660613,0.323,84777.0,84770.0,0.01179662]
[1764606660814,0.00038906,84785.0,84772.0,0.01179634]
[1764606661051,0.00038906,84785.0,84774.0,0.01179606]
[1764606661310,0.00038906,84785.0,84784.0,0.0474]
[1764606661509,0.00038906,84785.0,84784.0,0.11633906]
[1764606661736,0.00143748,84785.0,84784.0,0.33338725]
[1764606662396,0.00143748,84785.0,84784.0,0.21447906]
[1764606662658,0.00143748,84785.0,84784.0,0.33338725]
[1764606662821,0.00143748,84785.0,84784.0,0.33438725]
[1764606663242,0.00143748,84785.0,84784.0,0.33338725]
[1764606663371,0.00143748,84785.0,84784.0,0.34138725]
[1764606663569,0.00143748,84785.0,84784.0,0.34238725]
[1764606664036,0.02524112,84819.0,84805.0,0.01179175]
[1764606664240,9.185e-05,84819.0,84808.0,0.01179134]
[1764606664690,9.185e-05,84819.0,84802.0,0.01179217]
[1764606664691,0.0002,84860.0,84838.0,0.23574341]
[1764606664894,0.0002,84860.0,84838.0,0.25466341]
[1764606665104,0.0002,84860.0,84838.0,0.4261244]
[1764606665535,0.0002,84860.0,84838.0,0.4771664]
[1764606665739,0.0002,84860.0,84848.0,0.23571563]
[1764606665939,0.00013187,84849.0,84848.0,0.29755563]
[1764606666256,0.00013187,84849.0,84848.0,0.39569563]
[1764606666505,0.0002,84860.0,84857.0,0.01178453]
[1764606666706,0.0002,84870.0,84869.0,0.2356573]
[1764606666919,0.00372259,84887.0,84886.0,0.09178]
[1764606667087,0.00038894,84887.0,84886.0,0.04886]
[1764606667290,0.0002,84900.0,84886.0,0.04886]
[1764606667291,0.0002,84900.0,84898.0,0.06252299]
[1764606667496,0.00031658,84900.0,84899.0,0.16658473]
[1764606667741,0.00031658,84900.0,84899.0,0.14978878]
[1764606667928,0.00031658,84900.0,84899.0,0.16870878]
[1764606668104,0.00031658,84900.0,84899.0,0.14978878]
[1764606668304,0.00031658,84900.0,84899.0,0.29548556]
[1764606668718,0.00031658,84900.0,84899.0,0.28804655]
[1764606669032,0.00031658,84900.0,84899.0,0.29648556]
[1764606669248,0.00031658,84900.0,84899.0,0.29548556]
[1764606669491,0.01177121,84953.0,84899.0,0.29548556]
[1764606669492,0.09021,84958.0,84928.0,0.01177467]
[1764606669624,0.01588131,84945.0,84931.0,0.01177426]
[1764606669825,0.03539904,84940.0,84929.0,0.01803]
[1764606670427,0.04892,84960.0,84929.0,0.01803]
[1764606670628,0.03539904,84945.0,84930.0,0.09814]
[1764606670854,0.03539904,84945.0,84929.0,0.01814658]
[1764606670855,0.03539904,84945.0,84929.0,0.03706658]
[1764606671872,0.323,84937.0,84929.0,0.01814658]
[1764606672071,0.303,84937.0,84929.0,0.00411658]
[1764606672246,0.01177329,84938.0,84929.0,0.00011658]
[1764606672451,0.10669,84939.0,84929.0,0.00011658]
[1764606672814,0.47076562,84968.0,84929.0,0.00011658]
[1764606672815,0.09021,84952.0,84929.0,0.00011658]
[1764606673007,0.01648,84944.0,84929.0,0.00011658]
[1764606673301,0.23544923,84944.0,84929.0,0.00511658]
[1764606673588,0.68499931,84940.0,84929.0,0.00011658]
[1764606673792,0.6732263,84940.0,84929.0,0.00411658]
[1764606673965,0.02825246,84944.0,84929.0,0.00411658]
[1764606674171,0.323,84939.0,84929.0,0.00411658]
[1764606674536,0.33477315,84939.0,84929.0,0.00411658]
[1764606674742,0.23548763,84931.0,84929.0,0.00411658]
[1764606674965,0.55848804,84930.0,84929.0,0.00411658]
[1764606675203,0.61878804,84930.0,84929.0,0.00411658]
[1764606675391,0.69699804,84930.0,84929.0,0.00011658]
[1764606675599,0.69699804,84930.0,84929.0,0.00411658]
[1764606675987,2.812224,84930.0,84929.0,0.00011658]
[1764606676186,2.812224,84930.0,84929.0,0.00311658]
[1764606676187,2.69699804,84930.0,84929.0,0.00311658]
[1764606676388,2.69699804,84930.0,84929.0,0.00411658]
[1764606676644,2.69699804,84930.0,84929.0,0.00111658]
[1764606676850,0.01177523,84924.0,84903.0,0.07925658]
[1764606677047,0.57027962,84925.0,84904.0,0.01142947]
[1764606677257,0.24726244,84930.0,84896.0,0.04853]
[1764606677258,0.04892,84905.0,84896.0,0.04853]
[1764606677592,0.00011641,84905.0,84897.0,0.13068716]
[1764606677792,0.00011641,84905.0,84904.0,0.06184]
[1764606678085,0.00011641,84905.0,84896.0,0.04853]
[1764606678288,0.00011641,84905.0,84880.0,0.01178133]
[1764606678289,0.00011641,84905.0,84893.0,0.01888]
[1764606678486,0.32311641,84905.0,84886.0,0.02994]
[1764606678785,0.00366396,84897.0,84887.0,0.01888]
[1764606679029,0.01189427,84905.0,84886.0,0.02994]
[1764606679225,0.01189427,84905.0,84868.0,0.0473]
[1764606679226,0.03365,84887.0,84868.0,0.0473]
[1764606679434,0.323,84879.0,84868.0,0.0473]
[1764606679562,0.33478147,84879.0,84861.0,0.0473]
[1764606679763,0.323,84870.0,84861.0,0.0473]
[1764606679974,0.323,84870.0,84854.0,0.0217]
[1764606679975,0.01178342,84865.0,84854.0,0.0217]
[1764606680172,0.323,84865.0,84854.0,0.0217]
[1764606680386,0.323,84865.0,84840.0,0.13957689]
[1764606680387,0.323,84862.0,84840.0,0.12779]
[1764606680585,0.01178467,84856.0,84840.0,0.03003894]
[1764606680801,0.323,84849.0,84840.0,0.03003894]
[1764606681420,0.23566205,84868.0,84840.0,0.03003894]
[1764606681421,2.0,84877.0,84852.0,0.01178522]
[1764606681640,0.323,84869.0,84854.0,0.01178494]
[1764606681843,0.04543036,84887.0,84853.0,0.02150472]
[1764606681844,0.6732263,84890.0,84870.0,0.01178272]
[1764606682044,0.6732263,84890.0,84877.0,0.0345]
[1764606682254,0.323,84886.0,84877.0,0.0345]
[1764606682424,0.01178022,84888.0,84869.0,0.0345]
[1764606682628,0.06069953,84893.0,84852.0,0.003]
[1764606682629,0.01178161,84878.0,84852.0,0.003]
[1764606682831,0.323,84869.0,84857.0,0.11890819]
[1764606683032,0.323,84869.0,84857.0,0.11929713]
[1764606683247,0.323,84869.0,84857.0,0.00038894]
[1764606685563,0.323,84869.0,84857.0,0.00238894]
[1764606685746,0.323,84869.0,84858.0,0.00604592]
[1764606685951,0.01178189,84876.0,84858.0,0.00604592]
[1764606685952,0.323,84879.0,84858.0,0.09917592]
[1764606686298,0.323,84869.0,84866.0,0.01178328]
[1764606686505,0.323,84869.0,84868.0,0.0999]
[1764606686694,0.0954,84906.0,84882.0,0.01178106]
[1764606687029,0.0954,84906.0,84879.0,0.01178147]
[1764606687030,0.6732263,84900.0,84885.0,0.01178064]
[1764606687162,0.6732263,84900.0,84884.0,0.01178078]
[1764606687364,0.6732263,84900.0,84885.0,0.01178064]
[1764606687706,0.323,84899.0,84887.0,0.01178036]
[1764606687913,0.323,84899.0,84886.0,0.04936755]
[1764606687914,0.6732263,84900.0,84886.0,0.03758705]
[1764606688131,0.00336989,84888.0,84871.0,0.10491258]
[1764606688332,0.323,84889.0,84886.0,0.00011658]
[1764606689433,0.03238,84892.0,84886.0,0.00011658]
[1764606689732,0.03238,84892.0,84886.0,0.00411658]
[1764606690108,0.33478008,84889.0,84886.0,0.00411658]
[1764606690304,0.323,84889.0,84886.0,0.00411658]
[1764606690506,0.38687,84887.0,84886.0,0.00411658]
[1764606690825,0.46606,84887.0,84886.0,0.00411658]
[1764606691249,0.48454358,84887.0,84886.0,0.00011658]
[1764606691888,2.50969728,84887.0,84886.0,0.00311658]
[1764606692105,2.50969728,84887.0,84886.0,0.00011658]
[1764606692520,2.50969728,84887.0,84886.0,0.00411658]
[1764606692740,2.55216099,84887.0,84886.0,0.00011658]
[1764606692954,0.01178439,84858.0,84833.0,0.09502]
[1764606693153,0.6732263,84851.0,84840.0,0.03003894]
[1764606693359,0.6732263,84851.0,84841.0,0.01178675]
[1764606693563,0.323,84859.0,84840.0,0.03003894]
[1764606693796,0.323,84859.0,84841.0,0.03129279]
[1764606694114,0.6732263,84850.0,84840.0,0.03003894]
[1764606694452,0.00183319,84841.0,84840.0,0.03003894]
[1764606694858,0.00183319,84841.0,84840.0,0.20262993]
[1764606695784,0.00183319,84841.0,84840.0,0.20662993]
[1764606695995,3.19e-06,84841.0,84840.0,0.20262993]
[1764606696366,0.2445,84873.0,84840.0,0.20262993]
[1764606696367,0.0252412,84883.0,84863.0,0.01178369]
[1764606696572,0.7214263,84880.0,84863.0,0.01178369]
[1764606696780,0.7214263,84880.0,84864.0,0.03451]
[1764606696939,0.03148543,84890.0,84875.0,0.01178203]
[1764606696940,0.70471173,84890.0,84875.0,0.01178203]
[1764606697182,0.02523709,84889.0,84883.0,0.01178092]
[1764606697379,0.03148543,84898.0,84880.0,0.01178133]
[1764606697577,0.02523709,84899.0,84883.0,0.01178092]
[1764606697750,0.2445,84908.0,84896.0,0.01177911]
[1764606697934,0.04922,84924.0,84907.0,0.02979]
[1764606698131,0.00011639,84919.0,84907.0,0.02979]
[1764606698354,0.0253435,84919.0,84906.0,0.02979]
[1764606698574,0.0253435,84919.0,84906.0,0.03810364]
[1764606699181,0.03711942,84919.0,84907.0,0.002]
[1764606699378,0.0253435,84919.0,84907.0,0.001]
[1764606699604,0.01177634,84916.0,84897.0,0.01379]
[1764606699828,0.6732263,84910.0,84891.0,0.01888]
[1764606700240,0.6732263,84901.0,84878.0,0.01178161]
[1764606700504,0.323,84893.0,84882.0,0.23562052]
[1764606700704,0.323,84893.0,84879.0,0.04628147]
[1764606700909,0.6732263,84890.0,84879.0,0.0345]
[1764606701354,0.6732263,84890.0,84879.0,0.01178147]
[1764606701596,0.6732263,84890.0,84882.0,0.01178106]
[1764606701822,0.00011633,84890.0,84880.0,0.06589318]
[1764606702036,0.00011633,84890.0,84881.0,0.01178119]
[1764606702207,0.00011633,84890.0,84879.0,0.33664843]
[1764606702208,0.00011633,84890.0,84879.0,0.09502]
[1764606702410,0.00011633,84890.0,84878.0,0.28191212]
[1764606702411,0.67334263,84890.0,84882.0,0.001]
[1764606702826,0.67334263,84890.0,84878.0,0.0345]
[1764606703242,0.00011633,84890.0,84879.0,0.23562954]
[1764606703467,0.00011633,84890.0,84886.0,0.0117805]
[1764606703671,0.00011633,84890.0,84887.0,0.01178036]
[1764606703880,0.00011633,84890.0,84881.0,0.01178119]
[1764606704098,0.00011633,84890.0,84886.0,0.0117805]
[1764606704314,0.00011633,84890.0,84887.0,0.01178036]
[1764606704736,0.00011633,84890.0,84887.0,0.02827343]
[1764606704944,0.06387,84888.0,84865.0,0.01178342]
[1764606705099,0.6732263,84880.0,84868.0,0.011783]
[1764606705302,0.323,84889.0,84875.0,0.23563919]
[1764606705503,0.323,84889.0,84888.0,0.0345]
[1764606705702,0.00011633,84890.0,84888.0,0.0345]
[1764606706320,0.00011633,84890.0,84882.0,0.0345]
[1764606706501,0.00011633,84890.0,84887.0,0.003]
[1764606706801,0.02543892,84890.0,84869.0,0.01178286]
[1764606706965,0.6732263,84880.0,84870.0,0.04540103]
[1764606707376,0.6732263,84880.0,84870.0,0.03361831]
[1764606707569,0.6732263,84880.0,84870.0,0.28105538]
[1764606708013,0.04922,84879.0,84870.0,0.03361831]
[1764606708240,0.07456876,84879.0,84871.0,0.01178258]
[1764606708442,0.04922,84879.0,84870.0,0.03561831]
[1764606708594,0.49753988,84880.0,84870.0,0.04740103]
[1764606709084,0.49753988,84880.0,84870.0,0.03561831]
[1764606709468,0.49753988,84880.0,84870.0,0.03361831]
[1764606709684,0.49753988,84880.0,84871.0,0.01178258]
[1764606709890,0.49753988,84880.0,84868.0,0.011783]
[1764606710084,0.02535313,84879.0,84868.0,0.011783]
[1764606710394,0.02535313,84879.0,84871.0,0.002]
[1764606710606,0.02535313,84879.0,84870.0,0.01178272]
[1764606710806,0.02535313,84879.0,84871.0,0.06480562]
[1764606711036,0.02535313,84879.0,84871.0,0.06580562]
[1764606711250,0.02535313,84879.0,84871.0,0.05302304]
[1764606711456,0.02535313,84888.0,84880.0,0.01178133]
[1764606711676,0.00011633,84890.0,84882.0,0.01178106]
[1764606711883,0.00011633,84890.0,84885.0,0.23561251]
[1764606712098,0.00011633,84890.0,84889.0,0.30169178]
[1764606712312,0.00011633,84890.0,84889.0,0.36963646]
[1764606712515,0.00011633,84890.0,84889.0,0.06794468]
[1764606712804,0.00011633,84890.0,84882.0,0.01888]
[1764606713044,0.00011633,84890.0,84880.0,0.01378133]
[1764606713253,0.00011633,84890.0,84876.0,0.01178189]